bitfinex-derivatives/quotes_ETHF0:USTF0_20260131
["timestamp","ask_amount","ask_price","bid_price","bid_amount"]
[1769900135823,0.15171547,2419.7,2418.9,2.45506484]
[1769900136006,0.15171547,2419.7,2419.0,4.34542018]
[1769900136209,0.15171547,2419.7,2418.9,2.45506484]
[1769900136416,0.15171547,2419.7,2419.0,4.29674159]
[1769900136717,0.15171547,2419.7,2418.9,2.45506484]
[1769900137010,0.15171547,2419.7,2419.0,4.29685231]
[1769900137211,0.51395431,2419.8,2419.0,0.15297931]
[1769900137416,0.15200643,2419.7,2419.0,0.15297931]
[1769900138217,0.15200643,2419.7,2419.0,2.60804415]
[1769900139217,0.15200643,2419.7,2419.0,0.15297931]
[1769900139418,0.15200643,2419.7,2419.0,2.60804415]
[1769900141423,0.15200643,2419.7,2419.1,4.23690093]
[1769900141616,0.15200643,2419.7,2419.0,2.60804415]
[1769900142314,0.15200643,2419.7,2419.1,4.23749882]
[1769900142517,0.15200643,2419.7,2419.0,2.60804415]
[1769900142719,0.15200643,2419.7,2419.1,4.23126437]
[1769900142919,0.15200643,2419.7,2419.0,2.60804415]
[1769900143323,0.15200643,2419.7,2419.1,4.23412691]
[1769900143522,0.15200643,2419.7,2419.0,2.60804415]
[1769900145120,0.15200643,2419.7,2419.0,2.45506484]
[1769900145515,0.15200643,2419.7,2419.1,6.76415851]
[1769900145717,0.51395431,2419.8,2419.1,2.61412505]
[1769900145921,0.51395431,2419.8,2419.2,4.3088775]
[1769900146120,0.51395431,2419.8,2419.2,2.45506484]
[1769900147326,0.66022929,2419.8,2419.3,4.28446366]
[1769900147521,0.66022929,2419.8,2419.2,2.45506484]
[1769900147827,0.66022929,2419.8,2419.3,0.15906021]
[1769900148027,0.51395431,2419.8,2419.3,0.15906021]
[1769900148524,0.66022929,2419.8,2419.3,0.15906021]
[1769900148921,0.51395431,2419.8,2419.3,0.15906021]
[1769900149323,0.66022929,2419.8,2419.1,2.61412505]
[1769900149523,0.51395431,2419.8,2419.3,0.15906021]
[1769900149924,0.51395431,2419.8,2419.2,2.45506484]
[1769900149925,0.14627498,2419.7,2419.2,2.45506484]
[1769900151540,0.14627498,2419.7,2419.1,2.45506484]
[1769900151742,0.14627498,2419.7,2419.2,4.18052117]
[1769900151942,0.14627498,2419.7,2419.1,2.45506484]
[1769900152240,0.14627498,2419.7,2419.2,4.18049874]
[1769900152437,0.14627498,2419.7,2419.1,2.45506484]
[1769900154139,0.14627498,2419.4,2418.8,2.45506484]
[1769900154441,0.14627498,2419.4,2418.7,2.45506484]
[1769900154641,0.14627498,2419.4,2418.8,4.1168156]
[1769900154840,0.14627498,2419.4,2418.6,2.46026915]
[1769900155042,0.14627498,2419.4,2418.7,4.11725706]
[1769900155242,0.14627498,2419.4,2418.6,2.61932936]
[1769900155443,0.14627498,2419.4,2418.7,4.11743551]
[1769900155643,0.14627498,2419.4,2418.6,2.61932936]
[1769900155840,0.14627498,2419.4,2418.7,4.1174304]
[1769900156035,0.14627498,2419.4,2418.6,2.61932936]
[1769900157445,0.14627498,2419.4,2418.7,4.12088447]
[1769900157743,0.14627498,2419.4,2418.7,0.15906021]
[1769900158343,0.14627498,2419.4,2418.7,2.61412505]
[1769900159341,0.14627498,2419.3,2418.7,2.45506484]
[1769900159943,0.14627498,2419.3,2418.6,0.16426452]
[1769900160142,0.14627498,2419.3,2418.6,2.61932936]
[1769900160336,0.14627498,2419.3,2418.7,4.05678544]
[1769900160542,0.35321498,2419.4,2418.7,0.15906021]
[1769900160741,0.14627498,2419.3,2418.7,0.15906021]
[1769900160941,0.14627498,2419.3,2418.6,2.46026915]
[1769900161142,0.14627498,2419.3,2418.7,3.96439534]
[1769900161341,0.14627498,2419.3,2418.6,2.46026915]
[1769900161646,0.14627498,2419.3,2418.7,6.42072753]
[1769900161846,0.14627498,2419.3,2418.6,2.46026915]
[1769900162948,0.35322498,2419.3,2418.6,2.46026915]
[1769900163143,0.14627498,2419.2,2418.6,0.00520431]
[1769900164842,0.14627498,2419.2,2418.4,2.45506484]
[1769900165144,0.35319498,2419.6,2418.8,2.45506484]
[1769900165348,0.20692,2419.6,2418.9,0.15906021]
[1769900165750,0.66022929,2419.8,2419.0,0.15906021]
[1769900165949,0.66022929,2419.8,2419.1,0.15906021]
[1769900169046,0.00465488,2419.8,2419.3,0.15679106]
[1769900169245,0.3664751,2420.1,2419.3,0.15679106]
[1769900169449,0.3664751,2420.1,2419.3,2.6118559]
[1769900169646,0.1595951,2420.1,2419.4,0.15679106]
[1769900170148,0.1595951,2420.5,2419.4,0.15679106]
[1769900170351,0.1595951,2420.2,2419.5,4.03850503]
[1769900170551,0.1595951,2420.2,2419.5,0.15679106]
[1769900171047,0.1595951,2420.2,2419.5,2.6118559]
[1769900171351,0.1595951,2420.4,2419.6,0.15679106]
[1769900172143,0.1595951,2420.4,2419.4,2.6118559]
[1769900172342,0.1595951,2420.3,2419.3,2.45506484]
[1769900172548,0.49554321,2420.4,2419.1,2.45506484]
[1769900172549,0.1595951,2420.0,2419.1,2.45506484]
[1769900172744,0.1595951,2420.0,2419.2,3.88120466]
[1769900172950,0.1595951,2419.9,2419.0,2.4591871]
[1769900173150,0.1595951,2419.8,2419.0,0.00412226]
[1769900177356,0.1595951,2419.8,2419.1,0.15679106]
[1769900178557,0.2069,2419.9,2419.1,0.15679106]
[1769900178757,0.3664951,2419.9,2419.1,0.15679106]
[1769900179361,0.1595951,2419.8,2419.0,2.61597816]
[1769900179553,0.1595951,2419.8,2419.0,0.00412226]
[1769900179951,0.1595951,2419.6,2419.0,0.00412226]
[1769900182756,0.1595951,2419.6,2419.0,0.16091332]
[1769900184965,0.1595951,2419.6,2419.0,0.00412226]
[1769900185664,0.1595951,2419.4,2418.3,2.6118559]
[1769900185857,0.1595951,2419.4,2418.4,0.15679106]
[1769900186656,0.1595951,2419.4,2418.4,0.16134118]
[1769900187153,2.426,2419.8,2418.4,0.00455012]
[1769900187154,0.1595951,2419.0,2418.4,0.00455012]
[1769900187362,0.20697,2419.0,2418.4,0.16134118]
[1769900188766,0.1595951,2419.3,2418.5,0.15679106]
[1769900190263,0.3665251,2419.5,2418.5,0.15679106]
[1769900190862,0.3665251,2419.5,2418.6,0.15679106]
[1769900191267,0.1595951,2419.7,2418.7,0.15679106]
[1769900192468,0.1595951,2419.7,2418.8,0.15679106]
[1769900194172,0.2069,2419.9,2418.9,0.15679106]
[1769900194673,0.3664951,2419.9,2418.9,0.15679106]
[1769900194872,0.3664951,2419.9,2419.0,0.15679106]
[1769900196369,0.1595951,2420.2,2419.2,0.15679106]
[1769900197773,0.1595951,2420.2,2419.3,0.15116723]
[1769900199380,0.1595951,2420.2,2419.1,2.45506484]
[1769900199675,0.15095544,2420.1,2419.2,4.03758218]
[1769900199879,0.15095544,2420.1,2419.1,2.60623207]
[1769900200075,0.15095544,2420.1,2419.2,4.03208678]
[1769900200276,0.15095544,2420.1,2419.2,0.15116723]
[1769900200582,0.15095544,2420.1,2419.2,4.17674528]
[1769900200781,0.15095544,2420.1,2419.2,0.15116723]
[1769900202382,0.15095544,2420.1,2419.3,0.15918074]
[1769900204080,2.92254321,2420.4,2419.5,0.15918074]
[1769900204282,3.0703181,2420.4,2419.6,0.15918074]
[1769900205184,0.14777489,2420.3,2419.6,0.15918074]
[1769900214290,0.49554321,2420.4,2419.6,0.15918074]
[1769900214491,0.15092284,2420.5,2419.6,0.15918074]
[1769900216090,0.14777489,2420.4,2419.6,0.15918074]
[1769900217894,0.14777489,2420.4,2419.5,4.04290294]
[1769900218191,0.14777489,2420.4,2419.4,2.45506484]
[1769900218392,0.14777489,2420.4,2419.5,4.04344997]
[1769900218587,0.14777489,2420.4,2419.5,2.45506484]
[1769900218784,0.14777489,2420.4,2419.5,4.04295717]
[1769900218987,0.14777489,2420.4,2419.5,2.45506484]
[1769900219392,0.14777489,2420.4,2419.5,2.61424558]
[1769900219595,0.14777489,2420.2,2419.5,2.61424558]
[1769900220494,1.58389242,2420.3,2419.6,0.15918074]
[1769900220694,1.73166731,2420.3,2419.6,0.15918074]
[1769900221490,1.73166731,2420.3,2419.7,0.15918074]
[1769900223397,1.58389242,2420.3,2419.7,0.15918074]
[1769900224498,1.58389242,2420.3,2419.7,2.61424558]
[1769900224698,1.58389242,2420.3,2419.7,0.15918074]
[1769900226098,1.58389242,2420.3,2419.8,0.15918074]
[1769900226593,0.50746406,2420.5,2419.8,0.15918074]
[1769900226800,0.50746406,2420.5,2419.9,0.15918074]
[1769900227494,0.00314795,2420.5,2419.9,0.15918074]
[1769900227699,0.49476209,2421.1,2420.2,0.14734851]
[1769900227901,0.49476209,2421.1,2420.8,0.14734851]
[1769900228504,1.58389242,2421.3,2420.8,0.14734851]
[1769900228700,1.58769238,2421.3,2420.8,0.15139363]
[1769900229102,0.00379996,2421.3,2420.9,0.14734851]
[1769900230004,0.16153699,2421.7,2420.9,0.14734851]
[1769900230206,0.16153699,2421.7,2421.0,0.14734851]
[1769900230802,0.50234485,2421.7,2421.0,0.14734851]
[1769900231004,0.00399303,2421.7,2421.0,0.14734851]
[1769900231208,0.16553002,2421.7,2421.0,0.14734851]
[1769900232108,0.00399303,2421.7,2421.0,0.14734851]
[1769900233111,0.505885,2421.7,2421.0,0.14734851]
[1769900233812,0.00399303,2421.7,2421.0,0.14734851]
[1769900235305,0.16153699,2423.1,2421.6,0.14734851]
[1769900235504,0.20662,2423.2,2421.8,0.14734851]
[1769900235505,1.74542941,2422.9,2421.8,0.14734851]
[1769900235804,0.16153699,2422.8,2421.8,0.14734851]
[1769900236205,0.1667879,2422.8,2421.8,0.14734851]
[1769900240325,0.00525091,2422.8,2421.8,0.14734851]
[1769900240720,8.599528,2424.8,2422.3,0.14734851]
[1769900240926,0.20653,2424.3,2422.7,0.14734851]
[1769900241626,0.20653,2424.3,2422.9,0.14734851]
[1769900241923,0.21095506,2424.3,2422.9,0.1517969]
[1769900243222,0.15288655,2424.2,2422.9,0.1517969]
[1769900244225,0.494987,2424.3,2422.9,0.1517969]
[1769900244926,0.494987,2424.3,2423.1,0.14734851]
[1769900245126,0.16153699,2424.8,2423.1,0.14734851]
[1769900245327,0.16153699,2424.8,2423.3,0.00936049]
[1769900246122,0.1660338,2424.8,2423.3,0.00936049]
[1769900246323,0.16153699,2424.6,2423.3,0.00936049]
[1769900246530,0.16153699,2424.3,2423.0,0.01136318]
[1769900246931,0.16153699,2424.2,2422.9,0.00444839]
[1769900247229,0.50825822,2424.6,2422.2,2.57034851]
[1769900247230,0.16153699,2424.0,2422.2,2.57034851]
[1769900247426,0.16153699,2423.8,2422.2,2.57034851]
[1769900248326,0.16153699,2423.6,2422.2,2.57409444]
[1769900249330,0.16153699,2423.6,2422.3,0.14734851]
[1769900256329,0.16153699,2423.6,2422.4,0.14734851]
[1769900257437,0.16153699,2423.6,2422.4,2.60241335]
[1769900257732,0.16153699,2423.6,2422.5,0.14549836]
[1769900258530,0.16153699,2423.6,2422.4,2.45506484]
[1769900259130,0.16153699,2423.6,2422.3,2.45506484]
[1769900259331,0.16153699,2423.6,2422.4,2.45506484]
[1769900259829,0.20663,2423.0,2422.2,0.00374593]
[1769900260032,0.15418826,2422.7,2421.5,2.45506484]
[1769900260227,0.15418826,2422.6,2421.5,0.14549836]
[1769900260534,0.15418826,2422.6,2421.7,0.14549836]
[1769900260930,0.15728373,2422.6,2421.7,0.15053966]
[1769900261329,0.15728373,2422.6,2421.8,0.14549836]
[1769900263642,0.15728373,2422.6,2421.7,6.53150454]
[1769900265441,0.16413906,2422.6,2421.8,0.15771067]
[1769900265836,0.00309547,2422.6,2421.9,0.15771067]
[1769900269045,0.16413906,2422.6,2421.9,0.15771067]
[1769900272640,0.00309547,2422.6,2421.9,0.15771067]
[1769900273441,0.00309547,2422.6,2421.9,4.22910907]
[1769900274042,0.00309547,2422.6,2422.0,0.15771067]
[1769900275548,0.00309547,2422.6,2422.0,4.22910907]
[1769900276352,0.00309547,2422.6,2422.0,2.61277551]
[1769900279347,0.00309547,2422.6,2422.1,0.15771067]
[1769900279649,0.16104359,2423.1,2422.3,0.15771067]
[1769900280546,0.16430443,2423.1,2422.3,0.15771067]
[1769900281852,0.16430443,2423.1,2422.2,4.12744001]
[1769900282052,0.16430443,2423.1,2422.2,0.15771067]
[1769900282253,0.16430443,2423.1,2422.2,4.12759716]
[1769900282449,0.16430443,2423.1,2422.3,0.15771067]
[1769900282648,0.16430443,2423.1,2422.2,3.96988649]
[1769900282953,0.16430443,2423.1,2422.2,4.12759716]
[1769900283153,0.16430443,2423.1,2422.3,0.15771067]
[1769900287053,0.16430443,2423.1,2422.3,0.15541884]
[1769900287352,0.16430443,2423.1,2422.3,2.61048368]
[1769900287747,0.16430443,2423.1,2422.3,0.15541884]
[1769900288449,0.16430443,2423.1,2422.3,2.61048368]
[1769900288956,0.16430443,2423.1,2422.4,0.15541884]
[1769900289547,0.16430443,2423.1,2422.4,2.61048368]
[1769900290558,0.16430443,2423.1,2422.4,0.15541884]
[1769900291457,0.16430443,2423.1,2422.4,2.45506484]
[1769900291657,0.16430443,2423.1,2422.3,2.45506484]
[1769900291859,0.16430443,2423.1,2422.4,4.1409404]
[1769900292058,0.16430443,2423.1,2422.3,2.45506484]
[1769900292260,0.16430443,2423.1,2422.4,4.14093492]
[1769900292459,0.16430443,2423.1,2422.3,2.45506484]
[1769900292759,0.16430443,2423.1,2422.3,2.61048368]
[1769900292954,0.16430443,2423.1,2422.4,4.09230423]
[1769900293154,0.16430443,2423.1,2422.3,2.61048368]
[1769900293355,0.16430443,2423.1,2422.4,4.09226877]
[1769900293556,0.16430443,2423.1,2422.3,2.61048368]
[1769900294558,0.16430443,2423.1,2422.4,4.03431166]
[1769900294757,0.16430443,2423.1,2422.3,2.61048368]
[1769900294958,0.16430443,2423.1,2422.4,4.18972982]
[1769900295158,0.16430443,2423.1,2422.4,0.15541884]
[1769900296559,0.16430443,2423.1,2422.4,2.61048368]
[1769900297562,0.16430443,2423.1,2422.5,4.1913783]
[1769900297763,0.16430443,2423.1,2422.4,2.61048368]
[1769900297964,0.16430443,2423.1,2422.5,4.19212958]
[1769900298158,0.16430443,2423.1,2422.4,2.61048368]
[1769900298462,0.16430443,2423.1,2422.5,6.8022831]
[1769900298662,0.16430443,2423.1,2422.6,4.19179942]
[1769900298859,0.16430443,2423.1,2422.5,2.61048368]
[1769900299259,0.16430443,2423.1,2422.6,4.34201767]
[1769900299460,0.16430443,2423.1,2422.5,2.61048368]
[1769900301266,0.00326084,2423.1,2422.6,0.15541884]
[1769900301668,0.15195328,2423.1,2422.6,0.15541884]
[1769900302766,0.00326084,2423.1,2422.6,0.15541884]
[1769900302967,0.15195328,2423.1,2422.6,0.15541884]
[1769900303270,0.00326084,2423.1,2422.6,0.15541884]
[1769900307768,0.00326084,2423.1,2422.7,0.15541884]
[1769900308569,0.15195328,2423.1,2422.4,2.61048368]
[1769900308767,0.15195328,2423.1,2422.5,4.13497737]
[1769900308966,0.15195328,2423.1,2422.4,2.61048368]
[1769900309166,0.15195328,2423.1,2422.5,6.74527677]
[1769900309470,0.15195328,2423.1,2422.6,4.2905207]
[1769900309670,0.15195328,2423.1,2422.6,0.15541884]
[1769900310266,0.15195328,2423.1,2422.4,3.71719647]
[1769900310466,0.14869244,2422.7,2421.9,5.11162376]
[1769900310671,0.14869244,2422.7,2422.0,3.94951259]
[1769900310871,0.14869244,2422.6,2421.7,0.0050413]
[1769900311076,0.14869244,2422.6,2421.8,3.95020154]
[1769900311373,0.14869244,2422.6,2421.9,3.95020154]
[1769900311674,0.14869244,2422.6,2421.8,0.15541884]
[1769900311868,0.14869244,2422.6,2421.9,4.00681651]
[1769900312174,0.14869244,2422.6,2421.9,0.15541884]
[1769900313973,0.20666,2422.7,2421.9,0.15541884]
[1769900315872,0.35535244,2422.7,2421.9,0.15541884]
[1769900316273,0.14869244,2422.6,2421.7,0.16046014]
[1769900316471,0.14869244,2422.5,2421.7,0.0050413]
[1769900316974,0.14869244,2422.5,2421.7,0.1505848]
[1769900319677,0.14869244,2422.5,2421.7,0.0050413]
[1769900320875,0.14869244,2422.5,2421.7,0.1505848]
[1769900321176,0.14869244,2422.5,2421.7,0.0050413]
[1769900322172,0.1495893,2421.9,2421.1,3.82762738]
[1769900322377,0.20672,2422.0,2420.7,0.15961756]
[1769900322378,0.1495893,2421.7,2420.7,0.15961756]
[1769900322576,0.1495893,2421.6,2420.7,0.15961756]
[1769900323285,0.1495893,2421.6,2420.7,0.16451563]
[1769900323473,0.3563593,2421.4,2420.3,0.15961756]
[1769900323677,0.1495893,2421.2,2420.3,0.15961756]
[1769900323871,0.1495893,2421.1,2420.3,0.15961756]
[1769900324071,0.68550687,2421.1,2420.3,0.15961756]
[1769900324270,0.1495893,2421.0,2420.3,0.15961756]
[1769900324472,0.00476347,2421.0,2420.4,0.15961756]
[1769900328582,0.15435277,2421.0,2420.3,0.00380199]
[1769900328778,0.3564193,2420.7,2419.6,3.719]
[1769900328989,0.20687,2420.2,2419.5,0.15961756]
[1769900329283,0.1495893,2420.1,2419.1,0.15961756]
[1769900329878,0.3564693,2420.1,2419.1,0.16265054]
[1769900330280,0.3564793,2420.0,2419.1,0.16265054]
[1769900330485,0.20689,2419.9,2419.1,0.16265054]
[1769900330986,0.3564793,2419.9,2419.1,0.16265054]
[1769900331489,0.20692,2419.6,2419.1,0.16265054]
[1769900336089,0.1495893,2419.5,2419.1,0.00303298]
[1769900338385,0.20692,2419.6,2419.2,0.15961756]
[1769900338888,0.1495893,2420.1,2419.2,0.15961756]
[1769900339091,2.5745893,2420.8,2419.2,0.15961756]
[1769900339394,0.1495893,2420.7,2419.2,0.15961756]
[1769900340291,0.3564493,2420.3,2419.2,0.15961756]
[1769900341594,0.1495893,2419.9,2418.9,0.15961756]
[1769900341795,0.1495893,2420.3,2418.9,0.15961756]
[1769900342001,0.1495893,2419.9,2418.9,0.15961756]
[1769900342593,0.1495893,2419.9,2418.9,0.16263669]
[1769900343300,0.2069,2419.8,2418.9,0.16263669]
[1769900345793,0.1495893,2419.9,2418.9,0.16263669]
[1769900345998,0.1495893,2420.2,2418.9,0.16263669]
[1769900346802,0.1495893,2420.1,2418.9,0.16263669]
[1769900347397,0.1495893,2420.1,2419.0,0.14917662]
[1769900348604,0.14709561,2419.6,2418.9,0.00301913]
[1769900349302,0.14709561,2419.4,2418.9,0.00301913]
[1769900349500,0.14709561,2419.4,2418.3,7.57717888]
[1769900349702,0.14709561,2419.4,2418.3,0.14917662]
[1769900350204,2.426,2419.7,2418.3,0.14917662]
[1769900350205,0.35405561,2419.2,2418.3,0.14917662]
[1769900350704,0.35812551,2419.2,2418.3,3.92838452]
[1769900351402,0.35812551,2419.2,2418.4,3.77485068]
[1769900352002,0.14709561,2419.1,2418.4,3.77485068]
[1769900352209,0.14709561,2418.9,2418.3,0.00435722]
[1769900352504,0.14709561,2418.5,2417.6,3.65315158]
[1769900352697,0.14709561,2418.1,2417.3,3.65315158]
[1769900353002,0.14709561,2417.9,2416.5,4.95620492]
[1769900353210,0.14709561,2417.4,2416.3,0.14917662]
[1769900353407,0.35421561,2417.3,2416.3,0.00536014]
[1769900353604,0.14709561,2417.2,2416.3,0.00536014]
[1769900353800,0.35422561,2417.2,2416.3,0.00536014]
[1769900354004,0.14709561,2417.1,2416.3,0.00536014]
[1769900354204,0.35424561,2417.0,2416.3,0.00536014]
[1769900354503,0.14709561,2416.9,2416.3,0.00536014]
[1769900356507,0.00472598,2417.4,2416.8,0.14917662]
[1769900356706,4.9270268,2418.9,2416.3,0.00536014]
[1769900356707,0.14709561,2418.1,2417.1,0.14917662]
[1769900356899,0.55008429,2418.2,2417.2,0.14917662]
[1769900357106,0.16156991,2419.3,2417.9,3.25252121]
[1769900357309,0.16156991,2419.3,2417.7,3.25252121]
[1769900357510,0.16156991,2419.6,2417.8,2.427]
[1769900357704,0.00315045,2419.6,2418.2,3.25252121]
[1769900357905,0.16472036,2419.6,2418.3,3.25252121]
[1769900358108,0.16472036,2419.6,2418.5,3.25252121]
[1769900358311,0.16472036,2419.6,2418.2,0.00406149]
[1769900358507,0.16472036,2419.6,2418.6,3.25252121]
[1769900358709,0.16472036,2419.6,2418.8,3.25252121]
[1769900358908,0.16472036,2419.6,2418.6,3.25252121]
[1769900359408,0.16311591,2419.4,2418.2,0.00406149]
[1769900359710,0.16311591,2418.9,2418.2,0.00406149]
[1769900359908,0.16311591,2418.8,2417.3,3.725]
[1769900360101,0.16351982,2418.3,2417.0,2.4279695]
[1769900360506,0.16351982,2418.3,2417.3,3.25252121]
[1769900361010,0.16351982,2418.3,2417.5,3.25252121]
[1769900361508,0.16351982,2418.3,2417.6,3.25252121]
[1769900361706,0.16351982,2418.3,2417.5,3.25252121]
[1769900362106,0.16351982,2418.3,2417.6,3.25252121]
[1769900362305,0.16351982,2418.3,2417.3,0.00383145]
[1769900362612,0.16360995,2418.0,2417.3,0.00383145]
[1769900363508,0.37066995,2418.0,2417.3,0.00383145]
[1769900363703,0.16169423,2417.8,2416.8,3.725]
[1769900363907,0.16169423,2417.7,2416.5,2.427]
[1769900364212,0.16169423,2417.7,2415.9,8.68120492]
[1769900364412,0.16169423,2417.7,2416.1,3.25252121]
[1769900364612,0.16631539,2417.7,2416.3,3.25252121]
[1769900364812,0.16631539,2417.7,2416.4,3.25252121]
[1769900365010,0.00462116,2417.7,2416.1,0.00346725]
[1769900365216,0.00462116,2417.7,2416.7,3.25252121]
[1769900365611,0.00462116,2417.7,2417.0,3.25252121]
[1769900365914,0.00462116,2417.7,2416.7,3.25252121]
[1769900366209,0.16156991,2418.7,2417.1,0.00182855]
[1769900366415,0.16156991,2418.6,2417.1,0.00182855]
[1769900366615,0.16156991,2418.6,2417.4,3.25252121]
[1769900366813,0.16156991,2418.6,2417.3,3.25252121]
[1769900367217,0.16687028,2418.6,2417.5,3.25252121]
[1769900367413,0.16687028,2418.6,2417.3,3.25252121]
[1769900367610,0.00530037,2418.6,2417.9,3.25252121]
[1769900367812,0.16156991,2419.1,2417.9,0.00404892]
[1769900368007,0.16156991,2419.1,2418.0,3.25252121]
[1769900368215,0.16156991,2419.1,2417.9,0.00404892]
[1769900368417,0.16156991,2419.1,2418.2,3.25252121]
[1769900368820,0.1666681,2419.1,2418.4,3.25252121]
[1769900369113,0.00509819,2419.1,2418.4,3.25252121]
[1769900369417,0.00509819,2419.1,2418.7,3.25252121]
[1769900369614,0.00509819,2419.1,2418.4,3.25252121]
[1769900370016,0.00509819,2419.1,2418.7,3.25252121]
[1769900370214,0.00509819,2419.1,2417.9,0.00404892]
[1769900370215,0.00509819,2419.1,2418.4,3.25252121]
[1769900370414,0.00509819,2419.1,2418.7,3.25252121]
[1769900370614,0.00509819,2419.1,2418.8,3.25252121]
[1769900370814,0.163279,2419.4,2418.5,3.25252121]
[1769900371123,0.163279,2419.4,2418.3,3.25252121]
[1769900371324,2.428,2419.9,2418.1,2.44386905]
[1769900371517,0.1647741,2420.3,2418.8,3.25252121]
[1769900371716,0.16882493,2420.3,2418.8,2.427]
[1769900371917,0.16882493,2420.3,2419.1,3.25252121]
[1769900372317,0.16882493,2420.3,2419.3,3.25252121]
[1769900372518,0.16882493,2420.3,2418.9,3.25252121]
[1769900372717,0.16882493,2420.3,2418.3,9.92088506]
[1769900372718,0.16483223,2419.8,2418.4,6.18016141]
[1769900372917,0.00405083,2420.3,2418.0,6.1845927]
[1769900372918,0.16483223,2419.6,2418.1,6.18016141]
[1769900373217,0.16483223,2419.4,2418.0,4.445]
[1769900373721,2.427,2420.0,2417.9,6.17291797]
[1769900373722,0.16483223,2419.0,2417.9,3.72904892]
[1769900374223,0.16483223,2419.0,2417.9,6.98157013]
[1769900374523,0.16483223,2419.0,2418.0,3.25252121]
[1769900374724,0.16510796,2419.3,2417.9,3.72904892]
[1769900375115,0.16510796,2419.3,2418.0,3.25252121]
[1769900375324,0.16510796,2419.3,2418.1,3.25252121]
[1769900375718,0.16510796,2419.6,2417.9,6.17291797]
[1769900375920,0.16510796,2420.0,2418.2,5.69639026]
[1769900376222,0.16510796,2420.0,2418.3,8.12339026]
[1769900376419,0.16510796,2420.0,2418.4,3.25252121]
[1769900376615,0.16510796,2420.0,2418.5,3.25252121]
[1769900376820,0.16510796,2420.0,2418.7,3.25252121]
[1769900377020,0.16510796,2420.0,2418.8,3.25252121]
[1769900377220,0.16510796,2420.0,2418.5,2.44386905]
[1769900377221,0.16502021,2419.9,2418.5,2.44386905]
[1769900377524,0.16502021,2419.8,2418.6,3.25252121]
[1769900377721,0.37192021,2419.8,2418.6,3.25252121]
[1769900377920,0.37192021,2419.8,2418.7,3.25252121]
[1769900377921,0.16502021,2419.7,2418.7,3.25252121]
[1769900378125,0.16502021,2419.7,2418.6,3.25252121]
[1769900378823,0.16502021,2419.7,2418.7,3.25252121]
[1769900379024,0.16502021,2419.7,2418.5,3.25252121]
[1769900379423,0.16502021,2419.7,2418.6,3.25252121]
[1769900379627,0.16502021,2419.7,2418.5,3.25252121]
[1769900380125,0.16502021,2419.7,2418.3,4.87086905]
[1769900380126,0.16502021,2419.7,2418.6,3.25252121]
[1769900380321,0.16502021,2419.7,2418.5,3.25252121]
[1769900380816,0.16502021,2419.7,2418.6,3.25252121]
[1769900381016,0.16502021,2419.7,2418.5,3.25252121]
[1769900381421,0.16502021,2419.7,2418.6,3.25252121]
[1769900381626,0.16478287,2419.6,2418.5,3.25252121]
[1769900382023,0.16478287,2419.6,2418.6,3.25252121]
[1769900382220,0.16478287,2419.6,2418.5,3.25252121]
[1769900382623,0.16478287,2419.6,2418.6,3.25252121]
[1769900382825,0.16478287,2419.6,2418.5,3.25252121]
[1769900383229,0.16478287,2419.6,2418.6,3.25252121]
[1769900383430,0.16478287,2419.6,2418.7,3.25252121]
[1769900383624,0.16478287,2419.6,2418.8,3.25252121]
[1769900383824,0.16478287,2419.6,2418.6,3.25252121]
[1769900384332,0.16478287,2419.6,2418.7,3.25252121]
[1769900384526,0.16478287,2419.6,2418.6,3.25252121]
[1769900384925,0.16498425,2419.5,2418.7,3.25252121]
[1769900385125,0.16498425,2419.5,2418.6,3.25252121]
[1769900385426,0.16498425,2419.4,2418.6,3.25252121]
[1769900385730,0.16498425,2419.4,2418.7,3.25252121]
[1769900386030,0.16498312,2419.1,2418.3,3.25252121]
[1769900386330,2.42479705,2419.9,2417.9,3.72904892]
[1769900386331,0.37199312,2418.5,2417.9,0.00404892]
[1769900386531,0.16498312,2418.4,2417.9,3.25126976]
[1769900386724,0.00314732,2418.5,2417.7,2.44386905]
[1769900386932,0.16498312,2419.3,2418.4,3.25126976]
[1769900387124,0.16498312,2419.3,2418.2,2.44386905]
[1769900387125,0.16498312,2419.3,2418.2,5.69513881]
[1769900387431,0.20694,2419.4,2418.3,2.44386905]
[1769900387830,0.00468472,2419.4,2418.3,6.55243661]
[1769900388032,0.00468472,2419.4,2418.9,3.25126976]
[1769900388526,0.37188312,2419.9,2419.2,3.25126976]
[1769900388726,0.37188312,2419.9,2418.8,3.25126976]
[1769900389232,0.37188312,2419.9,2418.9,3.25126976]
[1769900389427,0.37188312,2419.9,2418.5,7.77180386]
[1769900389428,0.00519758,2419.9,2418.7,14.65067291]
[1769900389634,0.00519758,2419.9,2419.3,3.25126976]
[1769900389827,0.00519758,2419.9,2419.4,3.25126976]
[1769900390028,0.00519758,2419.9,2419.6,3.25126976]
[1769900390329,0.1648652,2420.3,2419.6,3.25126976]
[1769900390533,0.1648652,2420.3,2419.2,2.44956146]
[1769900390733,0.1648652,2420.3,2419.4,3.25126976]
[1769900391032,0.1648652,2420.3,2419.5,3.25126976]
[1769900391228,0.16857679,2420.3,2419.4,3.25126976]
[1769900391629,0.16857679,2420.3,2419.3,2.44956146]
[1769900391835,0.16857679,2420.3,2419.4,3.25126976]
[1769900392135,0.16857679,2420.3,2419.5,3.25126976]
[1769900392533,0.16857679,2420.3,2419.6,3.25126976]
[1769900392733,0.16857679,2420.3,2419.5,3.25126976]
[1769900393336,0.00371159,2420.3,2419.6,3.25126976]
[1769900393630,0.00371159,2420.3,2419.5,2.44956146]
[1769900393835,0.00371159,2420.3,2419.8,3.25126976]
[1769900394137,0.00371159,2420.3,2420.1,3.25126976]
[1769900394334,0.00371159,2420.3,2420.1,0.00512848]
[1769900394633,0.37445091,2420.6,2420.2,3.25126976]
[1769900394833,0.37445091,2420.6,2420.1,0.00512848]
[1769900395136,0.37445091,2420.6,2420.1,3.25639824]
[1769900395530,0.16726036,2420.5,2419.5,2.44956146]
[1769900395724,0.16726036,2420.3,2419.2,2.44956146]
[1769900395930,0.16726036,2420.3,2419.1,4.10415108]
[1769900395931,0.16726036,2420.3,2419.1,6.55371254]
[1769900396129,0.20686,2420.3,2419.1,2.44956146]
[1769900396424,0.16727287,2420.5,2419.2,6.55371254]
[1769900396630,0.004735,2420.6,2419.6,2.44956146]
[1769900396825,0.004735,2420.6,2419.6,6.55371254]
[1769900397030,0.004735,2420.6,2419.7,4.10415108]
[1769900397336,0.17200787,2420.6,2419.7,6.55371254]
[1769900398027,0.16713567,2420.5,2419.7,4.10415108]
[1769900398229,0.16713567,2420.3,2419.3,6.55371254]
[1769900398634,0.16713567,2420.2,2419.2,2.4543428]
[1769900399227,0.16713567,2420.2,2419.2,6.44213009]
[1769900399837,0.16713567,2420.2,2419.2,6.44209576]
[1769900400234,0.16713567,2420.2,2419.2,0.00478134]
[1769900400235,0.16673539,2420.1,2419.2,0.00478134]
[1769900400438,0.20688,2420.1,2419.2,0.00478134]
[1769900400737,0.16673539,2420.0,2419.2,0.00478134]
[1769900401441,0.16673539,2419.9,2419.2,0.00478134]
[1769900404843,0.16673539,2419.9,2418.8,2.44956146]
[1769900405443,0.16594472,2419.8,2418.8,2.44956146]